bitfinex-derivatives/quotes_SOLF0:USTF0_20250321
["timestamp","ask_amount","ask_price","bid_price","bid_amount"]
[1742516250095,7.8005,128.27,128.26,0.06006558]
[1742516250894,7.85792824,128.28,128.26,0.06006558]
[1742516251193,0.05772824,128.28,128.26,0.06006558]
[1742516251391,0.05772824,128.28,128.27,7.8005]
[1742516252192,0.05772824,128.28,128.26,35.70096558]
[1742516252999,0.05772824,128.28,128.26,0.06006558]
[1742516253498,7.8005,128.27,128.26,0.06006558]
[1742516254102,7.802,128.25,128.22,293.0833]
[1742516254397,27.84,128.27,128.19,27.84]
[1742516254602,7.8035,128.23,128.2,7.8042]
[1742516255300,7.86332792,128.23,128.2,7.85529391]
[1742516255496,7.8036,128.22,128.2,0.05109391]
[1742516255794,0.05982792,128.23,128.2,0.05109391]
[1742516255999,7.8042,128.21,128.2,0.05109391]
[1742516256891,27.89982792,128.23,128.2,0.05109391]
[1742516257384,27.89982792,128.23,128.2,7.85569391]
[1742516258486,35.70332792,128.23,128.2,7.85569391]
[1742516258891,27.89982792,128.23,128.2,0.05109391]
[1742516259094,7.8037,128.22,128.2,0.05109391]
[1742516259599,35.70312792,128.23,128.2,0.05109391]
[1742516259800,35.70312792,128.23,128.2,7.85579391]
[1742516263294,27.89982792,128.23,128.2,0.05109391]
[1742516263494,0.05982792,128.23,128.2,0.05109391]
[1742516263695,0.05982792,128.23,128.2,27.91109391]
[1742516263895,0.05982792,128.23,128.22,7.8036]
[1742516267705,0.05982792,128.23,128.21,7.8041]
[1742516267897,7.86282792,128.23,128.2,27.91109391]
[1742516268314,7.86282792,128.23,128.2,35.71559391]
[1742516269009,0.05982792,128.23,128.2,0.05109391]
[1742516269709,7.8042,128.21,128.2,0.05109391]
[1742516270806,7.8048,128.2,128.17,265.1864]
[1742516271712,7.8054,128.19,128.17,7.8064]
[1742516271901,7.8054,128.19,128.16,7.8069]
[1742516272106,7.85707818,128.19,128.17,0.0595425]
[1742516272411,7.806,128.18,128.17,0.0595425]
[1742516273405,7.85727818,128.19,128.17,0.0595425]
[1742516274821,0.05167818,128.19,128.17,0.0595425]
[1742516275615,0.05167818,128.19,128.18,7.806]
[1742516278812,0.05167818,128.19,128.18,7.806]
[1742516280311,7.818e-05,128.19,128.18,7.806]
[1742516280513,27.86,128.23,128.22,7.8036]
[1742516280710,37.7826,128.25,128.22,7.8036]
[1742516281419,29.9804,128.25,128.21,7.804]
[1742516281620,30.03979944,128.25,128.22,0.0582775]
[1742516282217,7.8027,128.24,128.22,0.0582775]
[1742516282924,7.803,128.23,128.22,0.0582775]
[1742516285326,30.03979944,128.25,128.17,27.86]
[1742516285516,29.9804,128.25,128.18,7.8055]
[1742516285715,29.9804,128.25,128.17,27.86]
[1742516285716,7.8038,128.22,128.17,27.86]
[1742516286523,7.86138906,128.21,128.18,0.04990767]
[1742516286918,7.86138906,128.21,128.18,7.85550767]
[1742516287120,7.8048,128.2,128.18,0.04990767]
[1742516287426,9.9098,128.2,128.18,0.04990767]
[1742516289729,7.8054,128.19,128.18,0.04990767]
[1742516290427,9.8492,128.19,128.18,0.04990767]
[1742516292120,37.7092,128.19,128.18,0.04990767]
[1742516294736,2.105,128.2,128.18,0.04990767]
[1742516294925,2.04658906,128.21,128.18,0.04990767]
[1742516295335,2.04658906,128.21,128.18,7.85540767]
[1742516295524,2.04658906,128.21,128.18,0.04990767]
[1742516295830,7.8052,128.2,128.18,0.04990767]
[1742516296234,27.86,128.19,128.12,257.46]
[1742516296428,7.8072,128.17,128.14,7.8082]
[1742516297533,7.86546635,128.17,128.14,7.8677776]
[1742516298134,7.8072,128.16,128.14,7.8677776]
[1742516298733,7.8072,128.16,128.14,0.0595776]
[1742516299132,7.8091,128.13,128.12,43.15576591]
[1742516299433,35.6691,128.13,128.12,36.57296591]
[1742516299636,27.86,128.13,128.09,10.7784042]
[1742516299831,7.81,128.12,128.09,10.7784042]
[1742516300334,7.86349795,128.12,128.09,10.83208243]
[1742516300733,0.05349795,128.12,128.09,10.83208243]
[1742516300927,0.05349795,128.12,128.09,18.64308243]
[1742516301633,7.86329795,128.12,128.09,18.64308243]
[1742516302534,7.8104,128.11,128.09,10.83208243]
[1742516302733,0.05349795,128.12,128.09,10.83208243]
[1742516303525,7.8106,128.11,128.09,10.83208243]
[1742516304133,7.8106,128.11,128.09,0.05367823]
[1742516304436,7.8109,128.1,128.09,0.05367823]
[1742516304835,0.05349795,128.12,128.09,0.05367823]
[1742516305427,0.05349795,128.12,128.09,7.86507823]
[1742516306440,7.86349795,128.12,128.09,7.86507823]
[1742516307337,0.05349795,128.12,128.09,7.86507823]
[1742516307732,0.05349795,128.12,128.09,0.05367823]
[1742516308038,0.05349795,128.12,128.09,27.91367823]
[1742516308738,0.05349795,128.12,128.11,7.8103]
[1742516309640,7.86339795,128.12,128.09,27.91367823]
[1742516309847,27.93349795,128.12,128.09,0.05367823]
[1742516310644,7.8106,128.11,128.09,0.05367823]
[1742516312340,35.74349795,128.12,128.09,7.86507823]
[1742516313743,7.8103,128.11,128.09,7.86507823]
[1742516313950,7.8103,128.11,128.09,0.05367823]
[1742516319638,7.8109,128.1,128.09,0.05367823]
[1742516320142,7.8125,128.08,128.04,27.88]
[1742516320840,7.8125,128.08,128.04,7.8141]
[1742516321040,7.8125,128.08,128.03,285.6325]
[1742516321249,0.05093028,128.07,128.06,7.8132]
[1742516324952,0.05093028,128.07,128.04,0.05893794]
[1742516325252,0.05093028,128.07,128.06,7.8133]
[1742516325454,0.05093028,128.07,128.04,0.05893794]
[1742516326452,7.86363028,128.07,128.05,7.8136]
[1742516327048,7.8133,128.06,128.04,0.05893794]
[1742516327245,35.6933,128.06,128.04,0.05893794]
[1742516327743,7.8139,128.05,128.04,0.05893794]
[1742516329149,27.88,128.06,127.99,10.7784042]
[1742516329456,31.8496,128.06,127.99,10.7784042]
[1742516330253,7.815,128.04,128.01,0.05477235]
[1742516330457,27.88,128.03,128.01,0.05477235]
[1742516331257,0.05656973,128.04,128.01,0.05477235]
[1742516331858,0.05656973,128.04,128.01,7.87087235]
[1742516333654,0.05656973,128.04,128.02,7.8154]
[1742516334557,0.05656973,128.04,128.01,7.87087235]
[1742516336062,0.05656973,128.04,128.01,7.87087235]
[1742516336861,0.05656973,128.04,128.02,7.8156]
[1742516337453,0.05656973,128.04,128.03,7.8151]
[1742516345768,0.05656973,128.04,128.01,0.05477235]
[1742516346369,0.05656973,128.04,128.02,7.8155]
[1742516348678,7.87126973,128.04,128.02,7.8155]
[1742516350182,7.8155,128.03,128.01,0.05477235]
[1742516350783,7.8151,128.03,128.01,0.05477235]
[1742516351383,35.75136973,128.04,128.01,7.87107235]
[1742516352579,27.93656973,128.04,128.01,7.87107235]
[1742516352773,27.93656973,128.04,128.01,0.05477235]
[1742516352977,2.1917,128.03,128.01,0.05477235]
[1742516353478,7.8158,128.02,128.01,0.05477235]
[1742516356081,7.8158,128.02,127.99,7.8173]
[1742516356277,7.8164,128.01,127.97,257.84]
[1742516356472,2.1917,128.03,127.97,257.84]
[1742516357282,0.05838074,128.01,127.99,7.8173]
[1742516358879,0.05838074,128.01,127.97,257.84]
[1742516359275,0.05838074,128.01,127.97,262.0742]
[1742516360384,0.05838074,128.01,128.0,7.817]
[1742516365283,29.919,128.08,127.99,27.88]
[1742516365690,37.7314,128.08,127.99,27.88]
[1742516365890,2.039,128.08,127.99,27.88]
[1742516366388,0.05301259,128.05,128.02,0.05674312]
[1742516366586,0.05301259,128.05,128.03,27.88]
[1742516367089,0.05301259,128.05,128.04,7.8145]
[1742516372489,32.1989,128.11,128.08,7.8117]
[1742516372889,40.0096,128.11,128.08,7.8117]
[1742516373691,40.06921858,128.11,128.08,7.86934339]
[1742516373889,0.05961858,128.11,128.08,0.05764339]
[1742516374285,0.05961858,128.11,128.09,27.88]
[1742516374591,0.05961858,128.11,128.1,7.8109]
[1742516374793,32.0142,128.16,128.09,27.88]
[1742516374984,39.8214,128.16,128.13,7.8088]
[1742516375180,32.0142,128.16,128.09,27.88]
[1742516375585,32.0142,128.16,128.07,27.88]
[1742516375781,32.0142,128.16,128.09,7.8112]
[1742516375984,0.05567785,128.13,128.1,0.04994446]
[1742516376190,7.8103,128.11,128.1,0.04994446]
[1742516376593,27.88,128.12,128.1,0.04994446]
[1742516376793,35.69,128.12,128.1,0.04994446]
[1742516377486,27.88,128.12,128.1,0.04994446]
[1742516377681,7.86497785,128.13,128.1,0.04994446]
[1742516377883,0.05567785,128.13,128.1,0.04994446]
[1742516378091,0.05567785,128.13,128.11,7.8098]
[1742516378389,0.05567785,128.13,128.1,27.92994446]
[1742516378693,0.05567785,128.13,128.11,7.8103]
[1742516378993,0.05567785,128.13,128.12,7.8097]
[1742516379794,0.05567785,128.13,128.11,7.81]
[1742516380195,7.86507785,128.13,128.1,35.74064446]
[1742516380390,0.05567785,128.13,128.1,0.04994446]
[1742516380896,7.8097,128.12,128.1,0.04994446]
[1742516381295,0.05567785,128.13,128.1,0.04994446]
[1742516381598,0.05567785,128.13,128.1,7.86054446]
[1742516381893,7.86507785,128.13,128.1,7.86054446]
[1742516382099,0.05567785,128.13,128.11,7.8101]
[1742516382795,0.05567785,128.13,128.1,7.86054446]
[1742516383186,7.86477785,128.13,128.11,7.8102]
[1742516383388,0.05567785,128.13,128.11,7.8102]
[1742516383999,0.05567785,128.13,128.12,7.8097]
[1742516384201,0.05567785,128.13,128.1,0.04994446]
[1742516384599,0.05567785,128.13,128.11,7.8099]
[1742516385303,0.05567785,128.13,128.12,7.8097]
[1742516387605,7.8061,128.18,128.15,7.8078]
[1742516387801,35.6661,128.18,128.15,7.8078]
[1742516388600,5.85644781,128.27,128.16,285.56]
[1742516388805,2.0824,128.26,128.16,289.6433]
[1742516389005,2.0824,128.26,128.16,289.9804]
[1742516389206,2.0824,128.26,128.21,7.8039]
[1742516389405,2.0824,128.26,128.21,35.7239]
[1742516389806,9.8837,128.26,128.21,27.92]
[1742516390005,0.04939345,128.25,128.22,0.05954462]
[1742516390607,7.85119345,128.25,128.22,0.05954462]
[1742516391805,0.04939345,128.25,128.22,0.05954462]
[1742516392500,0.04939345,128.25,128.22,7.86264462]
[1742516392695,0.04939345,128.25,128.22,0.05954462]
[1742516394006,0.04939345,128.25,128.22,7.86304462]
[1742516398313,7.85119345,128.25,128.22,7.86304462]
[1742516398709,0.04939345,128.25,128.22,7.86304462]
[1742516399810,7.85149345,128.25,128.22,7.86304462]
[1742516400911,7.8024,128.24,128.22,0.05954462]
[1742516402214,0.04939345,128.25,128.22,7.86304462]
[1742516402410,0.04939345,128.25,128.22,0.05954462]
[1742516402807,0.04939345,128.25,128.23,27.84]
[1742516403112,7.8002,128.28,128.23,27.84]
[1742516403508,9.8938,128.29,128.23,27.84]
[1742516403902,2.0943,128.29,128.25,7.8014]
[1742516404105,7.85923272,128.27,128.25,0.05301195]
[1742516404309,0.05823272,128.27,128.25,0.05301195]
[1742516404616,0.05823272,128.27,128.26,7.8011]
[1742516405006,0.05823272,128.27,128.25,0.05301195]
[1742516405212,0.05823272,128.27,128.25,7.85461195]
[1742516405516,27.84,128.32,128.26,27.84]
[1742516405811,6.2299,128.34,128.27,7.8001]
[1742516406013,27.88,128.33,128.26,27.84]
[1742516406215,27.88,128.33,128.23,2.1161]
[1742516406410,27.88,128.33,128.24,27.88]
[1742516406613,0.05976259,128.29,128.27,0.05983816]
[1742516407221,7.7999,128.28,128.27,0.05983816]
[1742516407422,0.05976259,128.29,128.27,0.05983816]
[1742516407918,0.05976259,128.29,128.27,7.86023816]
[1742516408121,0.05976259,128.29,128.27,0.05983816]
[1742516408415,7.85936259,128.29,128.27,0.05983816]
[1742516408621,0.05976259,128.29,128.27,27.93983816]
[1742516408815,0.05976259,128.29,128.27,35.74003816]
[1742516409710,7.85916259,128.29,128.27,35.74003816]
[1742516409921,0.05976259,128.29,128.27,27.93983816]
[1742516410422,7.7999,128.28,128.27,27.93983816]
[1742516410819,7.7999,128.28,128.27,0.05983816]
[1742516411221,0.05976259,128.29,128.27,0.05983816]
[1742516412025,7.7999,128.28,128.27,0.05983816]
[1742516412428,27.93976259,128.29,128.23,27.88]
[1742516412725,2.1251,128.28,128.22,265.3033]
[1742516413324,2.1251,128.28,128.23,7.8029]
[1742516413525,0.0569869,128.26,128.24,0.05127211]
[1742516414326,0.0569869,128.26,128.24,7.85357211]
[1742516415426,7.8581869,128.26,128.24,0.05127211]
[1742516415932,0.0569869,128.26,128.24,0.05127211]
[1742516416130,0.0569869,128.26,128.24,7.85347211]
[1742516416431,27.88,128.3,128.24,0.05127211]
[1742516416634,27.88,128.3,128.25,27.88]
[1742516416819,27.88,128.31,128.25,27.88]
[1742516417434,0.05609976,128.29,128.27,0.04991921]
[1742516417834,0.05609976,128.29,128.27,7.85031921]
[1742516418024,0.05609976,128.29,128.27,0.04991921]
[1742516418224,29.9826,128.32,128.27,0.04991921]
[1742516418430,37.7804,128.32,128.29,7.7992]
[1742516418641,9.8604,128.32,128.29,7.7992]
[1742516419027,7.7981,128.31,128.29,7.7992]
[1742516419330,27.92,128.34,128.28,27.92]
[1742516419531,7.7968,128.34,128.28,27.92]
[1742516419831,27.92,128.35,128.28,285.34]
[1742516420433,0.05278764,128.33,128.3,0.05028724]
[1742516420633,7.7975,128.32,128.3,0.05028724]
[1742516421033,7.84978764,128.33,128.3,0.05028724]
[1742516422140,7.7975,128.32,128.3,0.05028724]
[1742516423933,7.7981,128.31,128.3,0.05028724]
[1742516424337,7.7978,128.32,128.3,0.05028724]
[1742516425338,7.7981,128.31,128.3,0.05028724]
[1742516428133,7.7978,128.32,128.3,0.05028724]
[1742516429438,7.84998764,128.33,128.3,7.84868724]
[1742516429739,0.05278764,128.33,128.3,7.84868724]
[1742516429931,7.7978,128.32,128.3,0.05028724]
[1742516430235,0.05278764,128.33,128.3,0.05028724]
[1742516430739,7.7981,128.31,128.3,0.05028724]
[1742516430938,0.05278764,128.33,128.3,0.05028724]
[1742516431139,7.7978,128.32,128.3,0.05028724]
[1742516432343,7.84998764,128.33,128.3,7.84888724]
[1742516433343,7.7975,128.32,128.3,7.84888724]
[1742516435349,0.05278764,128.33,128.3,0.05028724]
[1742516436249,0.05278764,128.33,128.32,7.7975]
[1742516441752,0.05278764,128.33,128.31,27.88]
[1742516441753,0.05278764,128.33,128.31,35.6778]
[1742516442456,0.05278764,128.33,128.3,0.05028724]
[1742516443449,7.7981,128.32,128.3,0.05028724]
[1742516443649,0.05278764,128.33,128.3,0.05028724]
[1742516444058,4.23498764,128.33,128.3,0.05028724]
[1742516444250,7.7981,128.31,128.3,0.05028724]
[1742516444647,4.23498764,128.33,128.3,0.05028724]
[1742516444853,7.7978,128.32,128.3,0.05028724]
[1742516445252,7.7975,128.32,128.3,0.05028724]
[1742516445658,4.23498764,128.33,128.3,0.05028724]
[1742516445850,7.7975,128.32,128.3,0.05028724]
[1742516446052,4.23498764,128.33,128.3,0.05028724]
[1742516446550,7.7981,128.32,128.3,0.05028724]
[1742516446751,4.23498764,128.33,128.3,0.05028724]
[1742516446951,7.7981,128.31,128.3,0.05028724]
[1742516449150,7.7979,128.32,128.3,0.05028724]
[1742516449559,0.05278764,128.33,128.3,0.05028724]
[1742516450053,0.05278764,128.33,128.31,7.7977]
[1742516451461,7.84968764,128.33,128.31,7.7977]
[1742516452853,7.84968764,128.33,128.3,7.84868724]
[1742516455865,7.84968764,128.33,128.31,7.7981]
[1742516455866,0.05278764,128.33,128.31,7.7981]
[1742516456065,0.05278764,128.33,128.3,0.05028724]
[1742516456363,0.05278764,128.33,128.31,7.7978]
[1742516457665,0.05278764,128.33,128.32,7.7975]
[1742516458463,0.05278764,128.33,128.31,7.7978]
[1742516458661,0.05278764,128.33,128.3,0.05028724]
[1742516459263,0.05278764,128.33,128.31,7.7976]
[1742516459659,0.05278764,128.33,128.3,0.05028724]
[1742516460467,0.05278764,128.33,128.32,7.7975]
[1742516460965,0.05278764,128.33,128.31,7.7978]
[1742516461167,7.84968764,128.33,128.3,0.05028724]
[1742516461362,0.05278764,128.33,128.3,0.05028724]
[1742516461562,7.84998764,128.33,128.3,7.84868724]
[1742516462053,0.05278764,128.33,128.3,0.05028724]
[1742516462567,4.22658764,128.33,128.3,0.05028724]
[1742516462767,7.7981,128.31,128.3,0.05028724]
[1742516466469,0.05278764,128.33,128.3,0.05028724]
[1742516466861,2.10558764,128.33,128.3,0.05028724]
[1742516467366,2.10558764,128.33,128.24,43.2509053]
[1742516467568,4.2042,128.32,128.24,71.0709053]
[1742516467764,7.8001,128.28,128.25,7.8014]
[1742516468174,7.8006,128.27,128.25,7.8014]
[1742516468563,7.8006,128.27,128.25,7.85262947]
[1742516471174,7.8006,128.27,128.25,0.05122947]
[1742516471772,7.8011,128.26,128.25,0.05122947]
[1742516472675,27.82,128.27,128.2,257.3]
[1742516472875,4.1887,128.26,128.2,265.1045]
[1742516473378,7.8036,128.22,128.2,257.3]
[1742516473778,7.86106313,128.22,128.2,257.35286056]
[1742516473978,0.05746313,128.22,128.2,257.35286056]
[1742516474183,0.05746313,128.22,128.21,7.8042]
[1742516474488,0.05746313,128.22,128.2,257.35286056]
[1742516474869,0.05746313,128.22,128.2,265.15736056]
[1742516476084,0.05746313,128.22,128.21,7.8042]
[1742516476270,32.0087,128.26,128.2,257.35286056]
[1742516476475,39.8101,128.26,128.2,257.35286056]
[1742516476774,32.0087,128.26,128.2,257.35286056]
[1742516477272,7.8025,128.24,128.21,7.8037]
[1742516477482,0.05555144,128.24,128.2,257.35286056]
[1742516478073,7.85825144,128.24,128.21,7.8038]
[1742516478474,0.05555144,128.24,128.21,7.8038]
[1742516478682,0.05555144,128.24,128.2,257.35286056]
[1742516478876,0.05555144,128.24,128.21,7.8041]
[1742516479383,7.85825144,128.24,128.21,7.8041]
[1742516479782,0.05555144,128.24,128.22,7.8035]
[1742516479984,0.05555144,128.24,128.2,257.35286056]
[1742516480383,0.05555144,128.24,128.22,7.8033]
[1742516481690,0.05555144,128.24,128.2,257.35286056]
[1742516482581,0.05555144,128.24,128.21,27.84]
[1742516483592,0.05555144,128.24,128.23,7.803]
[1742516498006,0.05555144,128.24,128.21,27.84]
[1742516498302,27.89555144,128.24,128.2,257.35286056]
[1742516498497,7.8038,128.22,128.2,257.35286056]
[1742516498701,2.0252,128.23,128.2,0.05286056]
[1742516499006,7.8042,128.21,128.2,0.05286056]
[1742516499500,35.6442,128.21,128.17,71.0909053]
[1742516499695,7.8055,128.19,128.17,43.2509053]
[1742516500606,7.8051,128.2,128.17,43.2509053]
[1742516500804,0.05343201,128.19,128.17,0.05305771]
[1742516501807,0.05343201,128.19,128.17,7.85955771]
[1742516502604,0.05343201,128.19,128.17,0.05305771]
[1742516503005,7.85893201,128.19,128.17,0.05305771]
[1742516503601,7.806,128.18,128.17,0.05305771]
[1742516504208,35.646,128.18,128.14,7.8082]
[1742516504406,27.84,128.18,128.13,7.8088]
[1742516504607,27.84,128.18,128.12,285.28]
[1742516504909,27.84,128.2,128.12,285.28]
[1742516505411,27.84,128.2,128.18,7.8057]
[1742516505606,27.89992823,128.2,128.18,7.8057]
[1742516505807,27.89992823,128.2,128.18,0.05800197]
[1742516506009,27.89992823,128.2,128.18,7.86370197]
[1742516506508,27.89992823,128.2,128.18,0.05800197]
[1742516508011,35.70472823,128.2,128.18,0.05800197]
[1742516509310,7.8054,128.19,128.18,0.05800197]
[1742516510316,35.70492823,128.2,128.18,0.05800197]
[1742516510611,0.05992823,128.2,128.18,0.05800197]
[1742516511315,7.86482823,128.2,128.18,0.05800197]
[1742516511815,7.8054,128.19,128.18,0.05800197]
[1742516528113,0.05992823,128.2,128.18,0.05800197]
[1742516528712,0.05992823,128.2,128.19,7.8054]
[1742516531223,0.05992823,128.2,128.18,7.86360197]
[1742516531723,0.05992823,128.2,128.18,0.05800197]
[1742516532423,0.05992823,128.2,128.19,7.8054]
[1742516533516,7.86482823,128.2,128.18,7.86370197]
[1742516533716,7.86482823,128.2,128.18,0.05800197]
[1742516535123,7.95424495,128.2,128.18,7.86390197]
[1742516536829,7.95424495,128.2,128.18,0.05800197]
[1742516537725,7.8054,128.19,128.18,0.05800197]
[1742516537921,35.6454,128.19,128.18,0.05800197]
[1742516542534,27.84,128.19,128.18,0.05800197]
[1742516544426,27.84,128.19,128.18,7.86400197]
[1742516544631,0.14934495,128.2,128.18,0.05800197]
[1742516545119,0.14934495,128.2,128.18,7.86370197]
[1742516546434,0.14934495,128.2,128.19,7.8054]
[1742516547045,0.13283771,128.21,128.2,7.8048]
[1742516547240,0.39066505,128.22,128.19,27.84]
[1742516547640,0.39066505,128.22,128.21,7.8042]
[1742516548634,0.31753882,128.23,128.22,7.8036]
[1742516548836,0.35212749,128.25,128.22,27.84]
[1742516549038,0.35212749,128.25,128.19,0.5969]
[1742516549238,0.35212749,128.25,128.2,27.84]
[1742516549439,0.35212749,128.25,128.24,7.8024]
[1742516551951,0.87380368,128.26,128.25,7.8017]
[1742516552251,0.52681489,128.28,128.23,27.89433942]
[1742516552437,0.52681489,128.28,128.24,4.1037]
[1742516553449,7.85877819,128.27,128.24,11.9057]
[1742516553935,7.8016,128.26,128.23,35.69713942]
[1742516554546,0.05777819,128.27,128.23,27.89433942]
[1742516554751,7.85857819,128.27,128.24,7.802]
[1742516554951,0.05777819,128.27,128.23,27.89433942]
[1742516555343,7.8013,128.26,128.23,35.69693942]
[1742516556047,7.8019,128.25,128.23,27.89433942]
[1742516558147,0.05777819,128.27,128.23,27.89433942]
[1742516558454,7.8024,128.24,128.23,27.89433942]
[1742516558752,7.8024,128.24,128.23,0.05433942]
[1742516566157,27.82,128.25,128.18,285.34]
[1742516566759,7.8042,128.21,128.18,265.3257]
[1742516567152,7.85475524,128.21,128.18,265.3784302]
[1742516568759,7.8048,128.2,128.18,265.3784302]
[1742516569263,0.05055524,128.21,128.18,265.3784302]
[1742516569959,7.85505524,128.21,128.18,265.3784302]
[1742516571356,7.8048,128.2,128.18,257.5727302]
[1742516571547,0.05055524,128.21,128.18,257.5727302]
[1742516572258,0.05055524,128.21,128.18,0.0527302]
[1742516572465,7.8054,128.19,128.18,0.0527302]
[1742516573663,7.8051,128.2,128.18,0.0527302]
[1742516574463,7.8054,128.19,128.18,0.0527302]
[1742516575462,35.6454,128.19,128.18,0.0527302]
[1742516578365,27.84,128.21,128.15,0.05398114]
[1742516578562,27.84,128.21,128.16,27.84]
[1742516578762,27.84,128.21,128.19,7.8053]
[1742516578963,7.8039,128.22,128.16,27.84]
[1742516579162,27.84,128.23,128.16,27.84]
[1742516579353,35.6434,128.23,128.19,7.8049]
[1742516579559,0.05076161,128.21,128.19,7.8049]
[1742516580869,0.05076161,128.21,128.2,7.8048]
[1742516582877,0.05076161,128.21,128.18,0.05731614]
[1742516583762,0.05076161,128.21,128.2,7.8048]
[1742516587567,0.05076161,128.21,128.19,35.6451]
[1742516587765,0.05076161,128.21,128.19,7.8051]
[1742516588171,0.05076161,128.21,128.18,0.05731614]
[1742516588870,0.05076161,128.21,128.2,7.8048]
[1742516590474,0.05076161,128.21,128.18,0.05731614]
[1742516590773,27.87076161,128.21,128.18,0.05731614]
[1742516591171,7.8054,128.19,128.18,0.05731614]
[1742516592964,2.0051,128.2,128.18,0.05731614]
[1742516593167,2.0051,128.2,128.18,7.86301614]
[1742516594474,9.8099,128.2,128.18,7.86301614]
[1742516595472,9.8099,128.2,128.18,0.05731614]
[1742516595868,7.8054,128.19,128.18,0.05731614]
[1742516597881,9.8102,128.2,128.18,0.05731614]
[1742516599412,9.8102,128.2,128.18,7.86301614]
[1742516599609,2.0051,128.2,128.18,0.05731614]
[1742516599916,28.00387899,128.21,128.18,0.05731614]
[1742516600614,7.8054,128.19,128.18,0.05731614]
[1742516601312,7.8051,128.2,128.18,0.05731614]
[1742516601810,7.8054,128.19,128.18,0.05731614]
[1742516607429,9.9432,128.2,128.18,0.05731614]
[1742516608322,9.9432,128.2,128.18,7.86301614]
[1742516608629,9.9432,128.2,128.18,0.05731614]
[1742516608930,7.8054,128.19,128.18,0.05731614]
[1742516609124,2.1383,128.2,128.18,0.05731614]
[1742516609323,2.1383,128.2,128.18,7.86281614]
[1742516610122,9.9432,128.2,128.18,7.86281614]
[1742516610318,9.9432,128.2,128.18,0.05731614]
[1742516610521,2.1383,128.2,128.18,0.05731614]
[1742516610732,7.8054,128.19,128.18,0.05731614]
[1742516617606,9.9434,128.2,128.18,7.86331614]
[1742516617999,28.02387899,128.21,128.18,0.05731614]
[1742516618201,0.18387899,128.21,128.19,7.8051]
[1742516618699,0.18387899,128.21,128.18,0.05731614]
[1742516618904,0.18387899,128.21,128.2,7.8048]
[1742516619497,0.18387899,128.21,128.19,7.8051]
[1742516620104,7.98807899,128.21,128.19,7.8051]
[1742516621106,7.8049,128.2,128.18,0.05731614]
[1742516622101,7.8049,128.2,128.18,7.86331614]
[1742516622404,7.98837899,128.21,128.18,7.86331614]
[1742516623306,7.8048,128.2,128.18,7.86331614]
[1742516623506,7.8048,128.2,128.18,0.05731614]
[1742516624500,7.8054,128.19,128.18,0.05731614]
[1742516625001,7.8051,128.2,128.18,0.05731614]
[1742516626004,35.80827899,128.21,128.18,0.05731614]
[1742516626501,35.80827899,128.21,128.18,7.86301614]
[1742516627411,35.80827899,128.21,128.19,7.8053]
[1742516627810,7.8049,128.2,128.18,7.86301614]
[1742516628008,28.00387899,128.21,128.18,0.05731614]
[1742516628208,28.00387899,128.21,128.13,300.6909053]
[1742516628409,7.807,128.17,128.14,7.8082]
[1742516629310,7.86226739,128.17,128.14,7.86812161]
[1742516629803,7.86226739,128.17,128.15,7.8077]
[1742516629804,0.05526739,128.17,128.15,7.8077]
[1742516631413,0.05526739,128.17,128.14,0.05992161]
[1742516631414,0.05526739,128.17,128.16,7.8072]
[1742516640721,0.05526739,128.17,128.15,7.8075]
[1742516641522,0.05526739,128.17,128.14,0.05992161]
[1742516641917,7.8078,128.15,128.14,0.05992161]
[1742516643124,0.05526739,128.17,128.16,7.8072]
[1742516643824,0.05526739,128.17,128.15,7.8075]
[1742516645022,0.05526739,128.17,128.14,7.86822161]
[1742516645023,7.86226739,128.17,128.14,7.86822161]
[1742516645626,7.8073,128.16,128.14,7.86822161]
[1742516646527,7.86206739,128.17,128.14,7.86822161]
[1742516647221,0.05526739,128.17,128.15,7.8078]
[1742516647622,0.05526739,128.17,128.14,0.05992161]
[1742516648126,0.05526739,128.17,128.16,7.8072]
[1742516648920,0.05526739,128.17,128.15,7.8075]
[1742516649530,0.05526739,128.17,128.16,7.8072]
[1742516649728,0.05526739,128.17,128.14,0.05992161]
[1742516650532,7.86196739,128.17,128.14,0.05992161]
[1742516651125,7.86196739,128.17,128.14,7.86792161]
[1742516651525,0.05526739,128.17,128.14,0.05992161]
[1742516652732,7.8078,128.15,128.14,0.05992161]
[1742516653823,0.05526739,128.17,128.14,0.05992161]
[1742516654228,7.8072,128.16,128.14,0.05992161]